fUSD/lending_fUSD_20241022
["ID","MTS","AMOUNT","RATE_DAILY","PERIOD"]
[340642272,1729588238664,-3972.7222886,0.00011,2]
[340642273,1729588238677,-1182.97699048,0.00011,2]
[340642280,1729588240289,-2105.36040087,0.00011,2]
[340642281,1729588240301,-647.59479966,0.00011,2]
[340642283,1729588240732,-150.70957555,0.000109,2]
[340642284,1729588240741,-1684.18091796,0.00011,2]
[340642286,1729588243355,-401549.99999977,0.00011,2]
[340642287,1729588243625,-394.310675,0.00011,2]
[340642294,1729588246149,-134030.00000001,0.00011,2]
[340642295,1729588246213,-12671.26388696,0.00011,2]
[340642298,1729588246574,-669.38,0.00011,2]
[340642299,1729588246585,-535.00001144,0.00011,2]
[340642300,1729588246596,-330.32216,0.00011,2]
[340642301,1729588246609,-269.4349934,0.00011,2]
[340642302,1729588246622,-1113.70970627,0.00011,2]
[340642303,1729588246634,-1350.0,0.00011,2]
[340642304,1729588261154,11522.0,0.000102,5]
[340642305,1729588261399,11522.0,0.000101,3]
[340642306,1729588261671,69512.0,0.0001,2]
[340642308,1729588293145,11522.0,0.000102,5]
[340642309,1729588293408,11522.0,0.000101,3]
[340642310,1729588293693,80736.0,0.0001,2]
[340642311,1729588810551,529.56,8.457e-05,2]
[340642312,1729588849461,151.0,0.00010277,2]
[340642313,1729588850664,250.0,0.00010325,2]
[340642315,1729589147036,250.0,0.0001,2]
[340642317,1729589219505,181.55,0.00010293,2]
[340642318,1729589222482,250.0,0.00010293,2]
[340642333,1729589321695,503.08,8.362e-05,2]
[340642350,1729589385574,250.0,0.00010216,2]
[340642372,1729589432317,-150.0,0.00010409,2]
[340642374,1729589432328,-172.32534949,0.00010443,2]
[340642375,1729589432337,-262.4,0.00010552,2]
[340642376,1729589432346,-257.23,0.00010552,2]
[340642377,1729589432355,-1087.04465051,0.00010611,2]
[340642378,1729589432366,-11798.27799132,0.00010611,2]
[340642379,1729589432377,-737.6,0.00010613,2]
[340642380,1729589432386,-503.08,0.00010626,2]
[340642381,1729589432395,-180.36142336,0.00010873,2]
[340642382,1729589432407,-571.27539711,0.00010879,2]
[340642383,1729589432418,-245.65710828,0.00010879,2]
[340642384,1729589432427,-150.0,0.00010879,2]
[340642385,1729589432436,-228.71,0.00010879,2]
[340642386,1729589432444,-82.71020837,0.0001088,2]
[340642387,1729589432455,-629.99914214,0.0001088,2]
[340642388,1729589432466,-1751.15549722,0.0001088,2]
[340642389,1729589432477,-16001.01695421,0.0001088,2]
[340642390,1729589432506,-371.6925449,0.0001088,2]
[340642391,1729589432571,-480.67937972,0.0001088,2]
[340642392,1729589432634,-393.9067626,0.0001088,2]
[340642409,1729589437407,-286.86934451,0.0001088,2]
[340642411,1729589437521,-16947.504946,0.0001088,2]
[340642412,1729589437582,-998.13979976,0.0001088,2]
[340642413,1729589437593,-1046.66797986,0.0001088,2]
[340642414,1729589437643,-281.26836522,0.0001088,2]
[340642415,1729589437654,-663.56,0.0001088,2]
[340642416,1729589437665,-499.99,0.00010898,2]
[340642417,1729589437675,-150.99,0.00010898,2]
[340642418,1729589437684,-2332.86,0.00010898,2]
[340642419,1729589437693,-1120.921,0.00010899,2]
[340642420,1729589437703,-255.77208216,0.00010899,2]
[340642421,1729589437815,-16563.35459836,0.00010899,2]
[340642423,1729589437824,-5323.1125,0.000109,2]
[340642424,1729589437833,-4494.7961,0.000109,2]
[340642425,1729589437843,-4020.8032,0.000109,2]
[340642426,1729589437852,-200.94610074,0.000109,2]
[340642427,1729589437861,-492.55048015,0.000109,2]
[340642428,1729589437871,-547.58,0.00010959,2]
[340642429,1729589437880,-250.0,0.00010959,2]
[340642430,1729589437890,-500.0,0.00010973,2]
[340642431,1729589437899,-1480.91039613,0.00010996,2]
[340642432,1729589437912,-48799.2330539,0.00010997,2]
[340642433,1729589437921,-4222.9127514,0.00010997,2]
[340642434,1729589437932,-150.01,0.00010999,2]
[340642435,1729589437941,-500.0,0.00010999,2]
[340642436,1729589437951,-500.0,0.00010999,2]
[340642437,1729589437960,-500.0,0.00010999,2]
[340642438,1729589437970,-500.0,0.00010999,2]
[340642439,1729589437980,-474.89702171,0.00010999,2]
[340642440,1729589437990,-505.0,0.00011,2]
[340642441,1729589437999,-538969.14964632,0.00011,2]
[340642450,1729589439427,-434.90520034,0.00011,2]
[340642460,1729589444546,-9742219.23619088,0.00011,2]
[340642461,1729589444556,-893959.72028499,0.00011,2]
[340642462,1729589444567,-148045.89568584,0.00011,2]
[340642463,1729589444576,-490047.84489056,0.00011,2]
[340642464,1729589444585,-359.59,0.00011,2]
[340642465,1729589444596,-150.0,0.00011,2]
[340642466,1729589444606,-150.0,0.00011,2]
[340642467,1729589444615,-359.59,0.00011,2]
[340642468,1729589444625,-150.28,0.00011,2]
[340642469,1729589444634,-430.06,0.00011,2]
[340642470,1729589444644,-430.06,0.00011,2]
[340642471,1729589444653,-150.0,0.00011,2]
[340642472,1729589444664,-718.46,0.00011,2]
[340642473,1729589444674,-2000.0,0.00011,2]
[340642474,1729589444684,-200.0,0.00011,2]
[340642475,1729589444694,-1000.0,0.00011,2]
[340642476,1729589444703,-6443.9269452,0.00011066,2]
[340642477,1729589444714,-222.4092967,0.00011074,2]
[340642478,1729589444723,-150.0,0.000111,2]
[340642479,1729589444733,-150.0,0.000111,2]
[340642480,1729589444742,-859.22,0.000111,2]
[340642481,1729589444752,-430.06,0.000111,2]
[340642482,1729589444762,-150.0,0.000111,2]
[340642483,1729589444772,-150.0,0.000111,2]
[340642484,1729589444781,-408.33444299,0.00011348,2]
[340642485,1729589444790,-381487.49969374,0.0001145,2]
[340642486,1729589444800,-547.58,0.00011507,2]
[340642487,1729589444810,-2751.0,0.00011507,2]
[340642488,1729589444820,-262.4,0.00011871,2]
[340642489,1729589444830,-257.23,0.00011871,2]
[340642490,1729589444840,-241.47490914,0.000119,2]
[340642491,1729589444850,-255.0,0.00011923,2]
[340642492,1729589444860,-737.6,0.0001194,2]
[340642493,1729589444870,-3854.68981228,0.00012,2]
[340642494,1729589444880,-300.0,0.00012,2]
[340642495,1729589444890,-197.06,0.00012033,2]
[340642496,1729589444900,-547.58,0.00012055,2]
[340642497,1729589444912,-236.662,0.00012325,2]
[340642498,1729589444922,-236.662,0.00012326,2]
[340642499,1729589444931,-236.662,0.00012326,2]
[340642500,1729589444942,-236.662,0.00012327,2]
[340642501,1729589444952,-236.662,0.00012327,2]
[340642502,1729589444962,-236.662,0.00012328,2]
[340642503,1729589444972,-236.662,0.00012328,2]
[340642504,1729589444982,-236.662,0.00012329,2]
[340642505,1729589444992,-151.0,0.00012329,2]
[340642506,1729589445001,-151.0,0.00012329,2]
[340642507,1729589445012,-151.0,0.00012329,2]
[340642508,1729589445022,-151.0,0.00012329,2]
[340642509,1729589445031,-247.963725,0.00012329,2]
[340642510,1729589445041,-206.205336,0.00012329,2]
[340642511,1729589445051,-206.205336,0.00012329,2]
[340642512,1729589445061,-872.909891,0.00012329,2]
[340642513,1729589445071,-872.909891,0.00012329,2]
[340642514,1729589445081,-236.662,0.00012329,2]
[340642515,1729589445092,-236.662,0.00012329,2]
[340642516,1729589445101,-167.0,0.00012445,2]
[340642517,1729589445111,-168.65,0.00012445,2]
[340642518,1729589445121,-167.0,0.00012445,2]
[340642519,1729589445131,-14188.72321111,0.00012579,2]
[340642520,1729589445140,-547.58,0.00012603,2]
[340642521,1729589445150,-503.08,0.0001289,2]
[340642522,1729589445161,-165.69,0.00012893,2]
[340642523,1729589445171,-547.58,0.00013151,2]
[340642525,1729589445182,-262.4,0.0001319,2]
[340642526,1729589445192,-257.23,0.0001319,2]
[340642527,1729589445201,-737.6,0.00013266,2]
[340642528,1729589445211,-1000.0,0.000135,2]
[340642529,1729589445222,-720.0,0.000135,2]
[340642530,1729589445232,-150.0,0.00013651,2]
[340642532,1729589445242,-528.28551851,0.00013698,2]
[340642533,1729589445252,-3289.96,0.00013699,2]
[340642534,1729589445263,-500.0,0.00013699,2]
[340642535,1729589445274,-200.0,0.00013699,2]
[340642536,1729589445284,-150.0,0.00013749,2]
[340642537,1729589445294,-161.2438322,0.00013773,2]
[340642538,1729589445303,-500.0,0.00013773,2]
[340642539,1729589445313,-150.0,0.00013794,2]
[340642540,1729589445323,-150.0,0.00013794,2]
[340642541,1729589445332,-150.0,0.00013798,2]
[340642542,1729589445342,-150.0,0.000138,2]
[340642543,1729589445353,-197897.739669,0.000138,3]
[340642544,1729589445362,-872.909891,0.000138,2]
[340642545,1729589445372,-872.909891,0.000138,2]
[340642546,1729589445382,-150.0,0.00013801,2]
[340642547,1729589445391,-150.0,0.00013802,2]
[340642548,1729589445400,-150.0,0.00013819,2]
[340642549,1729589445410,-150.0,0.00013819,2]
[340642550,1729589445419,-150.0,0.00013825,2]
[340642551,1729589445429,-150.0,0.00013828,2]
[340642552,1729589445438,-10000.0,0.0001383,2]
[340642553,1729589445448,-150.0,0.00013853,2]
[340642554,1729589445458,-150.0,0.00013854,2]
[340642555,1729589445468,-150.0,0.00013891,2]
[340642556,1729589445477,-151.0,0.000139,2]
[340642557,1729589445487,-151.0,0.000139,2]
[340642558,1729589445496,-158.929813,0.000139,2]
[340642559,1729589445506,-151.0,0.000139,2]
[340642560,1729589445515,-151.0,0.000139,2]
[340642561,1729589445524,-151.0,0.000139,2]
[340642562,1729589445533,-5978.09702076,0.000139,3]
[340642563,1729589445543,-206.205336,0.000139,2]
[340642564,1729589445552,-206.205336,0.000139,2]
[340642565,1729589445562,-228.81565506,0.00013917,2]
[340642566,1729589445572,-150.0,0.00013929,2]
[340642567,1729589445581,-150.0,0.00013936,2]
[340642568,1729589445591,-150.0,0.00013945,2]
[340642569,1729589445600,-150.0,0.00013949,2]
[340642570,1729589445610,-150.0,0.00013954,2]
[340642571,1729589445619,-5514.21692492,0.0001396,2]
[340642572,1729589445629,-1500.0,0.00013972,2]
[340642573,1729589445639,-600.0,0.00013992,2]
[340642574,1729589445649,-600.0,0.00013992,2]
[340642575,1729589445660,-600.0,0.00013992,2]
[340642576,1729589445670,-600.0,0.00013992,2]
[340642577,1729589445680,-600.0,0.00013992,2]
[340642578,1729589445689,-600.0,0.00013992,2]
[340642579,1729589445700,-600.0,0.00013992,2]
[340642580,1729589445709,-600.0,0.00013992,2]
[340642581,1729589445719,-600.0,0.00013992,2]
[340642582,1729589445728,-600.0,0.00013992,2]
[340642583,1729589445738,-350.0,0.00014,2]
[340642584,1729589445748,-200.0,0.000141,2]
[340642585,1729589445757,-200.0,0.000141,2]
[340642586,1729589445766,-200.0,0.00014241,2]
[340642587,1729589445776,-200.0,0.00014241,2]
[340642588,1729589445786,-200.0,0.00014383,2]
[340642589,1729589445795,-200.0,0.00014383,2]
[340642590,1729589445805,-167.0,0.00014499,2]
[340642591,1729589445814,-262.4,0.00014509,2]
[340642592,1729589445823,-257.23,0.00014509,2]
[340642593,1729589445833,-200.0,0.00014527,2]
[340642594,1729589445842,-200.0,0.00014527,2]
[340642595,1729589445851,-197.06,0.00014586,2]
[340642596,1729589445860,-737.6,0.00014593,2]
[340642597,1729589445869,-200.0,0.00014673,2]
[340642598,1729589445878,-1826.0,0.00015,2]
[340642599,1729589445887,-777.0,0.00015,2]
[340642600,1729589445896,-150.41,0.00015068,2]
[340642601,1729589445905,-643.82198999,0.00015142,2]
[340642602,1729589445916,-503.08,0.00015154,2]
[340642603,1729589445926,-181.55,0.0001544,2]
[340642604,1729589445936,-16819.12668052,0.00015508,2]
[340642605,1729589445946,-150.0,0.00015696,2]
[340642606,1729589445955,-1910.0,0.00015696,2]
[340642607,1729589445965,-3359.0,0.00015696,2]
[340642608,1729589445974,-810.0,0.00015696,2]
[340642609,1729589445983,-1084.0,0.00015696,2]
[340642610,1729589445992,-1246.0,0.00015696,2]
[340642611,1729589446002,-813.0,0.00015696,2]
[340642612,1729589446011,-150.0,0.00015696,2]
[340642613,1729589446020,-5890.0,0.00015696,2]
[340642614,1729589446030,-450.0,0.00015696,2]
[340642615,1729589446039,-561.541,0.00015696,2]
[340642616,1729589446049,-4533.691,0.00015696,2]
[340642617,1729589446059,-262.4,0.00015828,2]
[340642618,1729589446068,-257.23,0.00015829,2]
[340642619,1729589446078,-2850.1321441,0.000159,2]
[340642620,1729589446087,-737.6,0.0001592,2]
[340642621,1729589446096,-400.0,0.00016,2]
[340642622,1729589446106,-151.0,0.00016116,2]
[340642623,1729589446115,-151.0,0.00016116,2]
[340642624,1729589446124,-151.0,0.00016116,2]
[340642625,1729589446134,-210.929477,0.00016116,2]
[340642626,1729589446143,-5498.32,0.00016116,2]
[340642627,1729589446154,-151.67,0.00016438,2]
[340642628,1729589446166,-503.08,0.00017418,2]
[340642629,1729589446175,-330.0,0.00018,3]
[340642630,1729589446260,-450.0,0.00018,2]
[340642631,1729589446273,-502.032961,0.00018,2]
[340642632,1729589446283,-150.0,0.00018696,2]
[340642633,1729589446293,-250.0,0.00018696,2]
[340642634,1729589446301,-446.649,0.00018696,2]
[340642635,1729589446311,-1084.0,0.00018696,2]
[340642636,1729589446321,-151.0,0.00018696,2]
[340642637,1729589446331,-498.8,0.00018696,2]
[340642638,1729589446340,-811.0,0.00018696,2]
[340642639,1729589446350,-5890.0,0.00018696,2]
[340642640,1729589446359,-560.0,0.00018696,2]
[340642641,1729589446369,-500.0,0.00019,2]
[340642642,1729589446378,-151.67,0.00019178,2]
[340642643,1729589446388,-161.82,0.00019178,2]
[340642644,1729589446397,-150.0,0.000192,2]
[340642645,1729589446406,-503.08,0.00019682,2]
[340642646,1729589446418,-5598.47146592,0.0002,2]
[340642647,1729589446427,-235.26302741,0.0002,2]
[340642648,1729589446436,-2299.931645,0.0002,2]
[340642649,1729589446445,-500.0,0.0002,2]
[340642650,1729589446454,-151.0,0.0002,2]
[340642651,1729589446464,-238.89414506,0.0002,2]
[340642652,1729589446473,-154.98,0.0002,2]
[340642653,1729589446482,-154.98,0.0002,2]
[340642654,1729589446491,-154.98,0.0002,2]
[340642655,1729589446500,-154.98,0.0002,2]
[340642656,1729589446509,-154.98,0.0002,2]
[340642657,1729589446519,-154.98,0.0002,2]
[340642658,1729589446528,-154.98,0.0002,2]
[340642659,1729589446537,-154.98,0.0002,2]
[340642660,1729589446547,-154.98,0.0002,2]
[340642661,1729589446556,-154.98,0.0002,2]
[340642662,1729589446566,-154.98,0.0002,2]
[340642663,1729589446575,-154.98,0.0002,2]
[340642664,1729589446584,-154.98,0.0002,2]
[340642665,1729589446595,-154.98,0.0002,2]
[340642666,1729589446605,-154.98,0.0002,2]
[340642667,1729589446614,-154.98,0.0002,2]
[340642668,1729589446623,-500.0,0.0002,2]
[340642669,1729589446633,-16819.12668052,0.0002012,2]
[340642670,1729589446642,-395.11,0.000211,7]
[340642671,1729589446651,-150.0,0.00021696,2]
[340642672,1729589446660,-1355.965,0.00021696,2]
[340642673,1729589446670,-2500.0,0.00021917,2]
[340642674,1729589446680,-2500.0,0.00021917,2]
[340642675,1729589446690,-2500.0,0.00021917,2]
[340642676,1729589446700,-2500.0,0.00021917,2]
[340642677,1729589446709,-2500.0,0.00021917,2]
[340642678,1729589446718,-2500.0,0.00021917,2]
[340642679,1729589446727,-2500.0,0.00021917,2]
[340642680,1729589446736,-2500.0,0.00021917,2]
[340642681,1729589446745,-2500.0,0.00021917,2]
[340642682,1729589446754,-2500.0,0.00021917,2]
[340642683,1729589446764,-2500.0,0.00021917,2]
[340642684,1729589446773,-2500.0,0.00021917,2]
[340642685,1729589446782,-379.66382713,0.00021917,2]
[340642686,1729589446792,-151.67,0.00021918,2]
[340642687,1729589446802,-278.85,0.00021918,2]
[340642688,1729589446812,-503.08,0.00021946,2]
[340642689,1729589446821,-550.0,0.00022,2]
[340642690,1729589446831,-492.55048014,0.000224,2]
[340642691,1729589446840,-200.0,0.00023,2]
[340642692,1729589446850,-3307.44527386,0.000233,2]
[340642693,1729589446860,-556.0,0.000233,2]
[340642694,1729589446869,-150.0,0.00024,2]
[340642695,1729589446879,-600.0,0.00024,2]
[340642696,1729589446888,-2999.99,0.000242,2]
[340642697,1729589446897,-3000.0,0.000242,2]
[340642698,1729589446907,-1154.99,0.000242,2]
[340642699,1729589446917,-3000.0,0.000242,2]
[340642700,1729589446926,-3000.0,0.000242,2]
[340642701,1729589446936,-2999.98,0.000242,2]
[340642702,1729589446946,-503.08,0.0002421,2]
[340642703,1729589446955,-95964.88622774,0.00024598,2]
[340642704,1729589446965,-872.909891,0.00024598,7]
[340642705,1729589446973,-872.909891,0.00024598,7]
[340642706,1729589446983,-375.0,0.00024657,2]
[340642707,1729589446992,-151.67,0.00024658,2]
[340642708,1729589447002,-16819.12668052,0.00024731,2]
[340642709,1729589447011,-163.75,0.00024877,30]
[340642710,1729589447021,-69997.73792135,0.0002495,2]
[340642711,1729589447030,-151.0,0.0002495,7]
[340642712,1729589447039,-151.0,0.0002495,7]
[340642713,1729589447048,-151.0,0.0002495,7]
[340642714,1729589447058,-206.205336,0.0002495,7]
[340642715,1729589447067,-206.205336,0.0002495,7]
[340642716,1729589447077,-3210.18899886,0.000251,2]
[340642717,1729589447086,-650.0,0.00026,2]
[340642718,1729589447096,-4292.03102095,0.00026,2]
[340642719,1729589447106,-4433.65,0.00026,2]
[340642720,1729589447115,-516.60339033,0.0002604,2]
[340642721,1729589447125,-12277.35061896,0.000264,2]
[340642722,1729589447134,-503.08,0.00026474,2]
[340642723,1729589447143,-329.26,0.000267,14]
[340642724,1729589447152,-150.75,0.00026712,2]
[340642725,1729589447162,-134298.42153585,0.00027,7]
[340642726,1729589447172,-2000.0,0.00027,2]
[340642727,1729589447181,-1032.09824881,0.00027,2]
[340642728,1729589447191,-872.909891,0.00027,7]
[340642729,1729589447201,-872.909891,0.00027,7]
[340642730,1729589447210,-2020.798053,0.0002701,2]
[340642731,1729589447219,-750.0,0.00027397,2]
[340642732,1729589447228,-491.42,0.00027397,60]
[340642733,1729589447237,-1000.0,0.00027397,7]
[340642734,1729589447249,-204.52,0.00027397,10]
[340642735,1729589447258,-163.75,0.00027461,30]
[340642736,1729589447271,-241.47490911,0.0002784,2]
[340642737,1729589447281,-200.0,0.00028,120]
[340642738,1729589447291,-700.0,0.00028,2]
[340642739,1729589447300,-503.08,0.00028737,2]
[340642740,1729589447310,-150.0,0.00029322,2]
[340642741,1729589447320,-150.0,0.00029322,2]
[340642742,1729589447329,-150.0,0.00029322,2]
[340642743,1729589447339,-150.0,0.00029322,2]
[340642744,1729589447348,-150.0,0.00029322,2]
[340642745,1729589447358,-150.0,0.00029322,2]
[340642746,1729589447367,-151.62773466,0.00029322,2]
[340642747,1729589447376,-16819.12668052,0.00029343,15]
[340642748,1729589447385,-254.67,0.00029589,2]
[340642749,1729589447394,-1948.707351,0.0002978,10]
[340642750,1729589447403,-1000.0,0.000298,10]
[340642751,1729589447414,-1000.0,0.0002982,10]
[340642752,1729589447423,-1000.0,0.0002984,10]
[340642753,1729589447432,-1000.0,0.0002986,10]
[340642754,1729589447442,-1000.0,0.0002988,10]
[340642755,1729589447451,-1000.0,0.000299,10]
[340642756,1729589447461,-1000.0,0.0002992,10]
[340642757,1729589447470,-1000.0,0.0002994,10]
[340642758,1729589447479,-1000.0,0.0002996,10]
[340642759,1729589447488,-1000.0,0.0002998,10]
[340642760,1729589447497,-5913.1749454,0.0003,7]
[340642761,1729589447506,-151.0,0.0003,120]
[340642762,1729589447516,-151.0,0.0003,120]
[340642763,1729589447526,-200.0,0.0003,120]
[340642764,1729589447536,-12685.26750465,0.0003,120]
[340642765,1729589447545,-151.0,0.0003,7]
[340642766,1729589447555,-151.0,0.0003,7]
[340642767,1729589447565,-151.0,0.0003,7]
[340642768,1729589447574,-750.0,0.0003,2]
[340642769,1729589447584,-151.0,0.0003,7]
[340642770,1729589447593,-151.0,0.0003,7]
[340642771,1729589447603,-151.0,0.0003,7]
[340642772,1729589447612,-206.205336,0.0003,7]
[340642773,1729589447621,-206.205336,0.0003,7]
[340642774,1729589447631,-1000.0,0.0003,11]
[340642775,1729589447640,-163.75,0.00030045,30]
[340642776,1729589447649,-2000.0,0.000301,30]
[340642777,1729589447659,-1125.0,0.00030136,2]
[340642778,1729589447670,-355.71,0.00030505,2]
[340642779,1729589447679,-151.0,0.00030849,120]
[340642780,1729589447689,-200.0,0.00031,120]
[340642781,1729589447698,-305.40225765,0.00031,2]
[340642782,1729589447708,-503.08,0.00031001,2]
[340642783,1729589447717,-1000.0,0.000313,15]
[340642784,1729589447726,-1000.0,0.000316,15]
[340642785,1729589447736,-151.0,0.00031699,120]
[340642786,1729589447745,-1000.0,0.000319,15]
[340642787,1729589447754,-158.95,0.00031963,2]
[340642788,1729589447763,-200.0,0.00032,120]
[340642789,1729589447845,-800.0,0.00032,2]
[340642790,1729589447855,-1000.0,0.000322,15]
[340642791,1729589447864,-1000.0,0.000325,15]
[340642792,1729589447875,-151.0,0.00032548,120]
[340642793,1729589447884,-163.75,0.00032629,120]
[340642794,1729589447894,-226.33358405,0.00032876,2]
[340642795,1729589447902,-172.20207513,0.00032877,2]
[340642796,1729589447913,-200.0,0.00033,120]
[340642797,1729589447923,-502.599756,0.00033,14]
[340642798,1729589447932,-278.85,0.00033151,120]
[340642799,1729589447942,-503.08,0.00033265,2]
[340642800,1729589447952,-151.0,0.00033397,120]
[340642801,1729589447961,-492.55048014,0.000339,2]
[340642802,1729589447970,-16819.12668052,0.00033954,15]
[340642803,1729589447980,-176194.12699754,0.00034,120]
[340642804,1729589447990,-10343.51072664,0.00034,7]
[340642805,1729589448000,-2630.77853989,0.00034,120]
[340642806,1729589448010,-200.0,0.00034,120]
[340642807,1729589448019,-151.0,0.00034,7]
[340642808,1729589448029,-156.233835,0.00034,7]
[340642809,1729589448038,-180.27016,0.00034,7]
[340642810,1729589448048,-151.0,0.00034,7]
[340642811,1729589448058,-850.0,0.00034,2]
[340642812,1729589448068,-151.0,0.00034,7]
[340642813,1729589448078,-151.0,0.00034,7]
[340642814,1729589448087,-151.0,0.00034,7]
[340642815,1729589448096,-206.205336,0.00034,7]
[340642816,1729589448106,-206.205336,0.00034,7]
[340642817,1729589448116,-872.909891,0.00034,7]
[340642818,1729589448125,-872.909891,0.00034,7]
[340642819,1729589448135,-2000.0,0.000342,30]
[340642820,1729589448145,-151.0,0.00034247,120]
[340642821,1729589448155,-150.0,0.00034548,10]
[340642822,1729589448167,-150.0,0.00034596,2]
[340642823,1729589448177,-301.34,0.00034596,2]
[340642824,1729589448187,-150.0,0.00034596,2]
[340642825,1729589448197,-300.0,0.00034596,2]
[340642826,1729589448207,-150.0,0.00034596,2]
[340642827,1729589448216,-300.0,0.00034596,2]
[340642828,1729589448225,-150.0,0.00034596,2]
[340642829,1729589448235,-459.46,0.00034596,2]
[340642830,1729589448246,-300.0,0.00034596,2]
[340642831,1729589448257,-875.86,0.00034596,2]
[340642832,1729589448269,-151.0,0.00034616,7]
[340642833,1729589448279,-428.32548418,0.00034849,120]
[340642834,1729589448289,-1316.235784,0.0003494,14]
[340642835,1729589448299,-1000.0,0.0003496,14]
[340642836,1729589448309,-1000.0,0.0003498,14]
[340642837,1729589448319,-169.32032281,0.00035,30]
[340642838,1729589448329,-3900.0,0.00035,7]
[340642839,1729589448339,-2300.89960372,0.00035,90]
[340642840,1729589448349,-200.0,0.00035,120]
[340642841,1729589448359,-1000.0,0.00035,14]
[340642842,1729589448369,-151.06636992,0.0003504,2]
[340642843,1729589448379,-151.0,0.00035096,120]
[340642844,1729589448388,-500.10731805,0.000352,4]
[340642845,1729589448398,-3934.0,0.000352,90]
[340642846,1729589448408,-898.62862,0.000352,90]
[340642847,1729589448419,-1000.0,0.000352,2]
[340642848,1729589448429,-206.93283036,0.000352,4]
[340642849,1729589448439,-566.52129163,0.000352,30]
[340642850,1729589448449,-2097.4449785,0.000352,60]
[340642851,1729589448459,-1080.99067185,0.000352,30]
[340642852,1729589448468,-1119.0,0.000352,120]
[340642853,1729589448478,-1035.8925533,0.000352,30]
[340642854,1729589448488,-150.0,0.000352,2]
[340642855,1729589448497,-7700.0,0.000352,2]
[340642856,1729589448507,-3071.786746,0.000352,30]
[340642857,1729589448517,-176.74647661,0.000352,30]
[340642858,1729589448526,-2180.54418808,0.000352,120]
[340642859,1729589448536,-1846.08813158,0.000352,16]
[340642860,1729589448546,-1061.30893804,0.000352,30]
[340642861,1729589448556,-2678.46060844,0.000352,30]
[340642862,1729589448566,-2294.46009352,0.000352,30]
[340642863,1729589448576,-10392.02928325,0.000352,3]
[340642864,1729589448585,-2722.99759284,0.000352,120]
[340642865,1729589448595,-1374.02697682,0.000352,120]
[340642866,1729589448606,-1941.23578362,0.000352,30]
[340642867,1729589448615,-1982.74057118,0.000352,30]
[340642868,1729589448625,-3804.35144276,0.000352,15]
[340642869,1729589448636,-1150.90335361,0.000352,30]
[340642870,1729589448646,-908.84176139,0.000352,30]
[340642871,1729589448656,-202.34753519,0.000352,7]
[340642872,1729589448668,-7725.0975463,0.000352,7]
[340642873,1729589448678,-1965.46577077,0.000352,120]
[340642874,1729589448687,-1198.78845392,0.000352,30]
[340642875,1729589448696,-201.83152875,0.000352,120]
[340642876,1729589448706,-2500.0,0.000352,30]
[340642877,1729589448717,-18705.80546424,0.000352,120]
[340642878,1729589448726,-3113.78,0.000352,120]
[340642879,1729589448735,-2335.54354753,0.000352,30]